fUST/lending_fUST_20240809
["ID","MTS","AMOUNT","RATE_DAILY","PERIOD"]
[334534359,1723175445143,-385.4706765,0.00024384,2]
[334534361,1723175445152,-294.5666805,0.00024384,2]
[334534363,1723175445161,-151.0,0.00024396,7]
[334534365,1723175445171,-1613.0,0.00024431,2]
[334534367,1723175445180,-150.52070897,0.00024461,2]
[334534369,1723175445194,-5268.86537018,0.00024572,2]
[334534372,1723175445203,-160.0,0.00024626,6]
[334534374,1723175445214,-240.55,0.000247,7]
[334534376,1723175445225,-150.702,0.00024766,2]
[334534378,1723175445235,-507.48,0.00024766,2]
[334534380,1723175445245,-1541.183,0.00024766,2]
[334534382,1723175445254,-7930.97,0.000248,14]
[334534384,1723175445263,-43189.34508509,0.000248,2]
[334534386,1723175445273,-151.0,0.000248,7]
[334534388,1723175445282,-151.0,0.000248,7]
[334534390,1723175445296,-151.0,0.000248,7]
[334534392,1723175445305,-151.821473,0.000248,7]
[334534394,1723175445314,-151.0,0.000248,7]
[334534397,1723175445323,-151.0,0.000248,7]
[334534398,1723175445333,-151.0,0.000248,7]
[334534400,1723175445342,-151.0,0.000248,7]
[334534402,1723175445352,-663.461342,0.000248,7]
[334534404,1723175445361,-663.461342,0.000248,7]
[334534406,1723175445371,-151.0,0.000248,7]
[334534409,1723175445381,-151.0,0.000248,7]
[334534411,1723175445391,-151.0,0.000248,7]
[334534413,1723175445400,-151.0,0.000248,7]
[334534415,1723175445410,-584.254296,0.000248,7]
[334534417,1723175445419,-584.254296,0.000248,7]
[334534419,1723175445429,-151.0,0.000248,7]
[334534421,1723175445439,-475.399349,0.000248,7]
[334534423,1723175445448,-178.762337,0.000248,7]
[334534425,1723175445458,-475.399349,0.000248,7]
[334534427,1723175445468,-178.762337,0.000248,7]
[334534429,1723175445478,-151.0,0.000248,7]
[334534431,1723175445488,-151.0,0.000248,7]
[334534433,1723175445498,-1005.973191,0.000248,7]
[334534435,1723175445508,-1005.973191,0.000248,7]
[334534437,1723175445517,-151.0,0.000248,2]
[334534440,1723175445527,-151.0,0.000248,2]
[334534444,1723175445536,-151.0,0.000248,7]
[334534446,1723175445546,-151.0,0.000248,7]
[334534448,1723175445557,-405.422742,0.000248,7]
[334534450,1723175445568,-405.422742,0.000248,7]
[334534452,1723175445578,-1417.882806,0.000248,7]
[334534454,1723175445588,-1417.882806,0.000248,7]
[334534456,1723175445598,-151.0,0.000248,7]
[334534458,1723175445608,-151.0,0.000248,7]
[334534460,1723175445619,-151.0,0.000248,7]
[334534462,1723175445630,-640.612167,0.000248,7]
[334534465,1723175445640,-640.612167,0.000248,7]
[334534467,1723175445651,-845.975809,0.000248,7]
[334534470,1723175445661,-845.975809,0.000248,7]
[334534472,1723175445671,-1208.766106,0.000248,7]
[334534474,1723175445681,-1208.766106,0.000248,7]
[334534476,1723175445690,-583.401317,0.000248,7]
[334534478,1723175445700,-202.135724,0.000248,7]
[334534480,1723175445711,-583.401317,0.000248,7]
[334534483,1723175445721,-202.135724,0.000248,7]
[334534485,1723175445732,-1000.0,0.00024843,2]
[334534487,1723175445741,-5268.86537023,0.00024861,2]
[334534489,1723175445751,-153.0,0.00024877,2]
[334534491,1723175445761,-153.0,0.00024877,2]
[334534493,1723175445770,-294.5666805,0.00024877,2]
[334534495,1723175445780,-294.5666805,0.00024877,2]
[334534497,1723175445789,-294.5666805,0.00024877,2]
[334534500,1723175445799,-294.5666805,0.00024877,2]
[334534502,1723175445808,-292.9949533,0.00024877,2]
[334534504,1723175445818,-151.0,0.00024877,7]
[334534506,1723175445827,-153.311632,0.00024877,7]
[334534508,1723175445840,-3079.81577829,0.000249,2]
[334534510,1723175445849,-247.299032,0.000249,7]
[334534512,1723175445859,-247.299032,0.000249,7]
[334534514,1723175445868,-151.0,0.000249,7]
[334534516,1723175445878,-292.0,0.00024932,2]
[334534518,1723175445889,-160.0,0.00024964,7]
[334534520,1723175445899,-1000.0,0.00024983,2]
[334534522,1723175445909,-500.0,0.00024999,2]
[334534524,1723175445919,-500.0,0.00024999,2]
[334534526,1723175445929,-150.01,0.00024999,2]
[334534528,1723175445939,-2993.10206773,0.00024999,2]
[334534530,1723175445949,-61623.34111073,0.00025,2]
[334534533,1723175445959,-154.94074895,0.00025,2]
[334534536,1723175445969,-1855.91386169,0.00025,2]
[334534538,1723175445979,-1027.99983711,0.00025,2]
[334534541,1723175445989,-40763.26340784,0.00025,2]
[334534544,1723175445999,-4184.36415148,0.00025,2]
[334534546,1723175446008,-1093.49324984,0.00025,7]
[334534548,1723175446018,-154.95445241,0.00025,2]
[334534550,1723175446027,-171.47295014,0.00025,2]
[334534552,1723175446038,-189.68346517,0.00025,2]
[334534554,1723175446047,-532.76753457,0.00025,2]
[334534557,1723175446057,-2400.0,0.00025,7]
[334534558,1723175446067,-154.79103211,0.00025,2]
[334534575,1723175446203,-23205.7965051,0.00025,30]
[334534578,1723175446232,-185986.22265735,0.00025,2]
[334534580,1723175446242,-152.069158,0.00025,7]
[334534582,1723175446251,-163.905472,0.00025,7]
[334534584,1723175446261,-151.0,0.00025,7]
[334534586,1723175446271,-215.354607,0.00025,7]
[334534588,1723175446282,-153.143073,0.00025,7]
[334534590,1723175446291,-247.299032,0.00025,7]
[334534592,1723175446301,-247.299032,0.00025,7]
[334534594,1723175446311,-247.299032,0.00025,7]
[334534596,1723175446320,-247.299032,0.00025,7]
[334534598,1723175446331,-151.0,0.00025,7]
[334534600,1723175446341,-151.0,0.00025,7]
[334534602,1723175446350,-151.0,0.00025,7]
[334534604,1723175446360,-151.0,0.00025,7]
[334534606,1723175446370,-151.0,0.00025,7]
[334534608,1723175446379,-151.0,0.00025,7]
[334534610,1723175446389,-151.0,0.00025,7]
[334534612,1723175446398,-151.0,0.00025,7]
[334534614,1723175446407,-153.846739,0.00025,7]
[334534616,1723175446416,-151.0,0.00025,7]
[334534618,1723175446426,-292.0,0.00025,2]
[334534620,1723175446435,-151.0,0.00025,7]
[334534622,1723175446446,-151.0,0.00025,7]
[334534624,1723175446455,-151.0,0.00025,7]
[334534626,1723175446464,-151.0,0.00025,7]
[334534628,1723175446474,-663.461342,0.00025,7]
[334534630,1723175446484,-663.461342,0.00025,7]
[334534632,1723175446493,-663.461342,0.00025,7]
[334534634,1723175446503,-663.461342,0.00025,7]
[334534636,1723175446512,-153.711608,0.00025,7]
[334534638,1723175446520,-151.0,0.00025,7]
[334534640,1723175446529,-151.0,0.00025,7]
[334534642,1723175446538,-154.227697,0.00025,7]
[334534644,1723175446547,-151.0,0.00025,7]
[334534646,1723175446556,-151.0,0.00025,7]
[334534648,1723175446565,-584.254296,0.00025,7]
[334534650,1723175446574,-584.254296,0.00025,7]
[334534652,1723175446583,-584.254296,0.00025,7]
[334534654,1723175446593,-584.254296,0.00025,7]
[334534656,1723175446602,-152.340694,0.00025,7]
[334534657,1723175446612,-475.399349,0.00025,7]
[334534659,1723175446621,-475.399349,0.00025,7]
[334534661,1723175446631,-178.762337,0.00025,7]
[334534663,1723175446640,-178.762337,0.00025,7]
[334534665,1723175446649,-475.399349,0.00025,7]
[334534667,1723175446659,-475.399349,0.00025,7]
[334534669,1723175446668,-178.762337,0.00025,7]
[334534671,1723175446678,-178.762337,0.00025,7]
[334534673,1723175446687,-151.0,0.00025,7]
[334534675,1723175446698,-173.449984,0.00025,7]
[334534677,1723175446707,-151.0,0.00025,7]
[334534679,1723175446717,-151.0,0.00025,7]
[334534681,1723175446726,-1005.973191,0.00025,7]
[334534683,1723175446735,-1005.973191,0.00025,7]
[334534685,1723175446745,-1005.973191,0.00025,7]
[334534687,1723175446754,-1005.973191,0.00025,7]
[334534689,1723175446763,-151.0,0.00025,2]
[334534691,1723175446773,-151.0,0.00025,2]
[334534693,1723175446782,-151.0,0.00025,2]
[334534695,1723175446792,-151.0,0.00025,2]
[334534697,1723175446802,-151.0,0.00025,7]
[334534699,1723175446811,-152.761347,0.00025,7]
[334534701,1723175446821,-151.0,0.00025,7]
[334534703,1723175446830,-151.0,0.00025,7]
[334534705,1723175446842,-405.422742,0.00025,7]
[334534707,1723175446851,-405.422742,0.00025,7]
[334534709,1723175446860,-405.422742,0.00025,7]
[334534711,1723175446869,-405.422742,0.00025,7]
[334534712,1723175446879,-1417.882806,0.00025,7]
[334534714,1723175446888,-1417.882806,0.00025,7]
[334534717,1723175446897,-1417.882806,0.00025,7]
[334534719,1723175446906,-1417.882806,0.00025,7]
[334534721,1723175446918,-151.550525,0.00025,7]
[334534723,1723175446928,-151.0,0.00025,7]
[334534725,1723175446937,-151.0,0.00025,7]
[334534727,1723175446949,-151.0,0.00025,7]
[334534729,1723175446958,-151.0,0.00025,7]
[334534731,1723175446967,-640.612167,0.00025,7]
[334534733,1723175446977,-640.612167,0.00025,7]
[334534735,1723175446986,-640.612167,0.00025,7]
[334534737,1723175446995,-640.612167,0.00025,7]
[334534739,1723175447006,-845.975809,0.00025,7]
[334534741,1723175447016,-845.975809,0.00025,7]
[334534743,1723175447026,-845.975809,0.00025,7]
[334534745,1723175447035,-845.975809,0.00025,7]
[334534747,1723175447044,-1208.766106,0.00025,7]
[334534749,1723175447053,-1208.766106,0.00025,7]
[334534751,1723175447063,-1208.766106,0.00025,7]
[334534753,1723175447072,-1208.766106,0.00025,7]
[334534755,1723175447082,-583.401317,0.00025,7]
[334534757,1723175447091,-583.401317,0.00025,7]
[334534760,1723175447101,-202.135724,0.00025,7]
[334534762,1723175447110,-202.135724,0.00025,7]
[334534764,1723175447119,-583.401317,0.00025,7]
[334534766,1723175447128,-583.401317,0.00025,7]
[334534768,1723175447138,-202.135724,0.00025,7]
[334534770,1723175447148,-202.135724,0.00025,7]
[334534772,1723175447157,-620.05351313,0.00025005,2]
[334534774,1723175447166,-294.5666805,0.00025096,2]
[334534776,1723175447175,-294.5666805,0.00025096,2]
[334534778,1723175447185,-300.2720741,0.00025096,2]
[334534780,1723175447195,-3252.44207348,0.000251,2]
[334534782,1723175447205,-3252.44207347,0.000251,2]
[334534784,1723175447214,-3252.44207347,0.000251,2]
[334534786,1723175447224,-3252.44207347,0.000251,2]
[334534788,1723175447233,-2259.40066287,0.000251,2]
[334534790,1723175447243,-2259.40066287,0.000251,2]
[334534792,1723175447252,-2259.40066287,0.000251,2]
[334534794,1723175447261,-2259.40066287,0.000251,2]
[334534796,1723175447270,-150.112233,0.000251,7]
[334534798,1723175447279,-774.77439666,0.00025126,2]
[334534800,1723175447289,-1613.0,0.00025135,2]
[334534802,1723175447298,-153.0,0.00025151,2]
[334534804,1723175447307,-207.1717265,0.00025151,2]
[334534806,1723175447316,-294.5666805,0.00025151,2]
[334534808,1723175447326,-294.5666805,0.00025151,2]
[334534810,1723175447335,-294.5666805,0.00025151,2]
[334534812,1723175447345,-294.5666805,0.00025151,2]
[334534814,1723175447355,-294.5666805,0.00025151,2]
[334534816,1723175447366,-2605.33705453,0.00025275,2]
[334534818,1723175447375,-160.0,0.00025303,8]
[334534819,1723175447384,-500.0,0.00025377,2]
[334534821,1723175447394,-500.0,0.00025377,2]
[334534823,1723175447404,-472.16409374,0.00025377,2]
[334534825,1723175447413,-16588.72621919,0.0002538,10]
[334534827,1723175447423,-2754.0,0.000254,2]
[334534829,1723175447432,-163.251953,0.00025405,2]
[334534831,1723175447442,-1000.0,0.00025405,2]
[334534833,1723175447451,-3152.68493021,0.00025432,2]
[334534835,1723175447461,-900.0,0.00025469,3]
[334534837,1723175447470,-568.7,0.000255,14]
[334534839,1723175447480,-201.0906367,0.00025517,2]
[334534841,1723175447489,-882.14952086,0.00025551,2]
[334534843,1723175447499,-3000.0,0.000256,2]
[334534845,1723175447508,-3000.0,0.0002561,2]
[334534847,1723175447517,-155.0776666,0.00025616,2]
[334534849,1723175447527,-411.9550516,0.00025616,2]
[334534851,1723175447536,-153.0,0.00025616,2]
[334534853,1723175447546,-153.0,0.00025616,2]
[334534855,1723175447555,-207.1717265,0.00025616,2]
[334534857,1723175447565,-153.0,0.00025616,2]
[334534859,1723175447575,-153.0,0.00025616,2]
[334534861,1723175447586,-207.1717265,0.00025616,2]
[334534863,1723175447595,-207.2250634,0.00025616,2]
[334534865,1723175447605,-153.0,0.00025616,2]
[334534867,1723175447614,-153.0,0.00025616,2]
[334534869,1723175447624,-506.1429622,0.00025616,2]
[334534871,1723175447634,-207.2250634,0.00025616,2]
[334534873,1723175447645,-207.2250634,0.00025616,2]
[334534875,1723175447655,-3000.0,0.0002562,2]
[334534877,1723175447664,-3000.0,0.0002563,2]
[334534879,1723175447674,-402.66527594,0.00025638,2]
[334534881,1723175447684,-3000.0,0.0002564,2]
[334534883,1723175447694,-160.0,0.00025641,9]
[334534885,1723175447703,-3000.0,0.0002565,2]
[334534887,1723175447712,-3000.0,0.0002566,2]
[334534889,1723175447722,-3000.0,0.0002567,2]
[334534891,1723175447731,-3000.0,0.0002568,2]
[334534893,1723175447741,-800.0,0.00025687,2]
[334534895,1723175447751,-800.0,0.00025687,2]
[334534897,1723175447760,-3000.0,0.0002569,2]
[334534899,1723175447770,-3000.0,0.000257,2]
[334534901,1723175447779,-3000.0,0.0002571,2]
[334534903,1723175447788,-2000.0,0.0002572,2]
[334534905,1723175447797,-3000.0,0.0002572,2]
[334534907,1723175447806,-3000.0,0.0002573,2]
[334534909,1723175447815,-3000.0,0.0002574,2]
[334534911,1723175447824,-12019.37325433,0.0002574,2]
[334534913,1723175447833,-3000.0,0.0002575,2]
[334534915,1723175447846,-3000.0,0.0002576,2]
[334534917,1723175447856,-3000.0,0.0002577,2]
[334534919,1723175447865,-3000.0,0.0002578,2]
[334534921,1723175447874,-3000.0,0.0002579,2]
[334534923,1723175447885,-151.0,0.0002579,7]
[334534925,1723175447894,-405.422742,0.0002579,7]
[334534927,1723175447903,-405.422742,0.0002579,7]
[334534929,1723175447913,-1417.882806,0.0002579,7]
[334534931,1723175447923,-1417.882806,0.0002579,7]
[334534933,1723175447932,-151.0,0.0002579,7]
[334534935,1723175447942,-640.612167,0.0002579,7]
[334534937,1723175447958,-640.612167,0.0002579,7]
[334534939,1723175447967,-202.135724,0.0002579,7]
[334534941,1723175447976,-202.135724,0.0002579,7]
[334534943,1723175447986,-3000.0,0.000258,2]
[334534945,1723175447995,-475.399349,0.000258,7]
[334534947,1723175448004,-178.762337,0.000258,7]
[334534949,1723175448013,-475.399349,0.000258,7]
[334534951,1723175448023,-178.762337,0.000258,7]
[334534953,1723175448032,-151.0,0.000258,7]
[334534955,1723175448041,-1005.973191,0.000258,7]
[334534957,1723175448051,-1005.973191,0.000258,7]
[334534959,1723175448060,-151.0,0.000258,2]
[334534961,1723175448069,-151.0,0.000258,2]
[334534963,1723175448078,-151.0,0.000258,7]
[334534965,1723175448088,-845.975809,0.000258,7]
[334534967,1723175448097,-845.975809,0.000258,7]
[334534969,1723175448106,-1208.766106,0.000258,7]
[334534971,1723175448116,-1208.766106,0.000258,7]
[334534973,1723175448125,-583.401317,0.000258,7]
[334534975,1723175448135,-583.401317,0.000258,7]
[334534977,1723175448144,-3000.0,0.0002581,2]
[334534979,1723175448153,-181.162644,0.0002581,7]
[334534981,1723175448163,-584.254296,0.0002581,7]
[334534983,1723175448173,-584.254296,0.0002581,7]
[334534985,1723175448183,-3000.0,0.0002582,2]
[334534987,1723175448192,-3000.0,0.0002583,2]
[334534989,1723175448203,-151.0,0.0002583,7]
[334534991,1723175448212,-185.260226,0.0002583,7]
[334534993,1723175448222,-151.0,0.0002583,7]
[334534995,1723175448232,-151.0,0.0002583,7]
[334534996,1723175448242,-151.0,0.0002583,7]
[334534997,1723175448251,-151.0,0.0002583,7]
[334534998,1723175448260,-663.461342,0.0002583,7]
[334534999,1723175448270,-663.461342,0.0002583,7]
[334535000,1723175448281,-155.53101,0.0002583,7]
[334535001,1723175448290,-151.0,0.0002584,7]
[334535002,1723175448301,-3000.0,0.0002584,2]
[334535003,1723175448311,-247.299032,0.0002585,7]
[334535004,1723175448320,-247.299032,0.0002585,7]
[334535005,1723175448329,-151.0,0.0002585,7]
[334535006,1723175448339,-3000.0,0.0002585,2]
[334535007,1723175448348,-151.0,0.00025859,3]
[334535008,1723175448358,-3000.0,0.0002586,2]
[334535009,1723175448368,-3000.0,0.0002587,2]
[334535010,1723175448378,-3000.0,0.0002588,2]
[334535011,1723175448388,-3000.0,0.0002589,2]
[334535012,1723175448398,-292.0,0.0002589,2]
[334535014,1723175448408,-3000.0,0.000259,2]
[334535015,1723175448418,-3000.0,0.0002591,2]
[334535017,1723175448427,-3000.0,0.0002592,2]
[334535019,1723175448437,-3000.0,0.0002593,2]
[334535021,1723175448451,-3000.0,0.0002594,2]
[334535023,1723175448467,-3000.0,0.0002595,2]
[334535025,1723175448476,-3000.0,0.0002596,2]
[334535027,1723175448485,-3000.0,0.0002597,2]
[334535029,1723175448494,-3000.0,0.0002598,2]
[334535031,1723175448504,-160.0,0.0002598,10]
[334535033,1723175448514,-164.76527864,0.0002598,5]
[334535035,1723175448523,-3000.0,0.0002599,2]
[334535037,1723175448533,-3229.82761687,0.00026,10]
[334535039,1723175448543,-500.0,0.00026,3]
[334535041,1723175448553,-1000.0,0.00026,7]
[334535043,1723175448563,-3311.249803,0.00026,2]
[334535045,1723175448573,-2743.33,0.00026027,5]
[334535047,1723175448583,-2743.33,0.00026027,5]
[334535049,1723175448595,-2743.33,0.00026027,5]
[334535051,1723175448606,-2743.33,0.00026027,5]
[334535053,1723175448615,-2743.33,0.00026027,5]
[334535055,1723175448626,-2743.33,0.00026027,5]
[334535057,1723175448636,-2743.33,0.00026027,5]
[334535059,1723175448646,-2743.33,0.00026027,5]
[334535061,1723175448655,-2743.33,0.00026027,5]
[334535063,1723175448665,-2743.33,0.00026027,5]
[334535065,1723175448675,-2743.33,0.00026027,5]
[334535067,1723175448684,-2743.33,0.00026027,5]
[334535069,1723175448696,-2743.33,0.00026027,5]
[334535071,1723175448707,-2743.33,0.00026027,5]
[334535073,1723175448718,-2743.33,0.00026027,5]
[334535075,1723175448728,-2743.33,0.00026027,5]
[334535077,1723175448737,-2743.33,0.00026027,5]
[334535079,1723175448748,-2743.33,0.00026027,5]
[334535081,1723175448758,-2743.33,0.00026027,5]
[334535083,1723175448768,-2743.33,0.00026027,5]
[334535085,1723175448779,-2743.33,0.00026027,5]
[334535087,1723175448789,-2743.33,0.00026027,5]
[334535089,1723175448799,-2743.33,0.00026027,5]
[334535091,1723175448808,-2743.47828343,0.00026027,5]
[334535093,1723175448819,-500.0,0.00026027,2]
[334535095,1723175448829,-500.0,0.00026027,2]
[334535097,1723175448843,-500.0,0.00026027,2]
[334535099,1723175448853,-500.0,0.00026027,2]
[334535101,1723175448862,-570.87343678,0.00026027,2]
[334535103,1723175448872,-500.0,0.00026027,2]
[334535105,1723175448883,-500.0,0.00026027,2]
[334535107,1723175448892,-500.0,0.00026027,2]
[334535109,1723175448902,-500.0,0.00026027,2]
[334535111,1723175448911,-500.0,0.00026027,2]
[334535113,1723175448925,-500.0,0.00026027,2]
[334535115,1723175448935,-500.0,0.00026027,2]
[334535117,1723175448945,-500.0,0.00026027,2]
[334535119,1723175448955,-500.0,0.00026027,2]
[334535121,1723175448965,-500.0,0.00026027,2]
[334535123,1723175448976,-200.0,0.00026027,2]
[334535125,1723175448986,-413.9992563,0.00026027,2]
[334535127,1723175448996,-150.112233,0.000261,9]
[334535129,1723175449005,-432.1796011,0.00026164,2]
[334535131,1723175449015,-500.0,0.00026169,2]
[334535133,1723175449026,-500.0,0.00026169,2]
[334535135,1723175449036,-500.0,0.00026169,2]
[334535137,1723175449046,-500.0,0.00026169,2]
[334535139,1723175449056,-500.0,0.00026169,2]
[334535141,1723175449067,-240.55,0.000262,7]
[334535143,1723175449076,-620.00267566,0.00026255,2]
[334535144,1723175449086,-151.0,0.0002632,3]
[334535147,1723175449097,-533.47,0.0002637,2]
[334535149,1723175449107,-7930.97,0.000264,14]
[334535151,1723175449116,-475.399349,0.000264,7]
[334535152,1723175449126,-178.762337,0.000264,7]
[334535154,1723175449135,-475.399349,0.000264,7]
[334535156,1723175449145,-178.762337,0.000264,7]
[334535158,1723175449155,-151.0,0.000264,7]
[334535160,1723175449164,-1005.973191,0.000264,7]
[334535162,1723175449173,-1005.973191,0.000264,7]
[334535164,1723175449182,-151.0,0.000264,2]
[334535166,1723175449193,-151.0,0.000264,2]
[334535168,1723175449203,-151.0,0.000264,7]
[334535170,1723175449214,-405.422742,0.000264,7]
[334535172,1723175449223,-405.422742,0.000264,7]
[334535174,1723175449233,-1417.882806,0.000264,7]
[334535176,1723175449243,-1417.882806,0.000264,7]
[334535178,1723175449253,-151.0,0.000264,7]
[334535180,1723175449264,-151.0,0.000264,7]
[334535182,1723175449273,-640.612167,0.000264,7]
[334535184,1723175449283,-640.612167,0.000264,7]
[334535186,1723175449292,-845.975809,0.000264,7]
[334535188,1723175449303,-845.975809,0.000264,7]
[334535190,1723175449312,-1000.0,0.000264,7]
[334535192,1723175449321,-1000.0,0.000264,7]
[334535194,1723175449332,-1000.0,0.000264,7]
[334535196,1723175449342,-455.542435,0.000264,7]
[334535198,1723175449354,-1208.766106,0.000264,7]
[334535200,1723175449363,-1208.766106,0.000264,7]
[334535202,1723175449373,-583.401317,0.000264,7]
[334535204,1723175449383,-202.135724,0.000264,7]
[334535206,1723175449394,-583.401317,0.000264,7]
[334535208,1723175449404,-202.135724,0.000264,7]
[334535210,1723175449414,-7458.94652043,0.0002649,2]
[334535212,1723175449423,-584.254296,0.0002649,7]
[334535214,1723175449434,-584.254296,0.0002649,7]
[334535216,1723175449445,-596.0,0.00026722,2]
[334535218,1723175449455,-151.0,0.00026782,4]
[334535220,1723175449465,-1000.0,0.000268,2]
[334535222,1723175449474,-151.0,0.000268,7]
[334535224,1723175449486,-168.966782,0.000268,7]
[334535226,1723175449495,-186.848728,0.000268,7]
[334535228,1723175449505,-151.0,0.000268,7]
[334535230,1723175449515,-663.461342,0.000268,7]
[334535232,1723175449525,-663.461342,0.000268,7]
[334535234,1723175449537,-160.575813,0.00026828,2]
[334535236,1723175449547,-220.780168,0.00026828,2]
[334535238,1723175449557,-157.895547,0.00026828,2]
[334535240,1723175449566,-153.0,0.00026849,2]
[334535242,1723175449576,-500.0,0.0002696,2]
[334535244,1723175449585,-5000.0,0.00027,83]
[334535246,1723175449595,-33885.25798563,0.00027,7]
[334535248,1723175449604,-38952.1089094,0.00027,5]
[334535250,1723175449613,-2000.0,0.00027,2]
[334535252,1723175449623,-4992.78014801,0.00027,2]
[334535254,1723175449632,-9574.81312347,0.00027,4]
[334535256,1723175449641,-247.299032,0.00027,7]
[334535271,1723175449767,-247.299032,0.00027,7]
[334535273,1723175449793,-151.0,0.00027,7]
[334535275,1723175449803,-151.0,0.00027,7]
[334535277,1723175449813,-151.0,0.00027,7]
[334535279,1723175449823,-500.01,0.00027055,2]
[334535281,1723175449833,-757.75396421,0.0002709,2]
[334535284,1723175449847,-306.0,0.00027151,2]
[334535285,1723175449856,-160.575813,0.00027163,2]
[334535287,1723175449866,-220.780168,0.00027163,2]
[334535289,1723175449875,-299.0,0.00027185,2]
[334535291,1723175449886,-568.7,0.000272,14]
[334535293,1723175449895,-58981.7018185,0.00027227,11]
[334535295,1723175449905,-151.0,0.00027227,7]
[334535297,1723175449915,-663.461342,0.00027227,7]
[334535299,1723175449925,-663.461342,0.00027227,7]
[334535301,1723175449934,-584.254296,0.00027227,7]
[334535303,1723175449945,-584.254296,0.00027227,7]
[334535305,1723175449955,-475.399349,0.00027227,7]
[334535307,1723175449964,-178.762337,0.00027227,7]
[334535309,1723175449974,-475.399349,0.00027227,7]
[334535311,1723175449983,-178.762337,0.00027227,7]
[334535313,1723175449992,-151.0,0.00027227,7]
[334535315,1723175450002,-1005.973191,0.00027227,7]
[334535317,1723175450012,-1005.973191,0.00027227,7]
[334535319,1723175450021,-151.0,0.00027227,2]
[334535321,1723175450030,-151.0,0.00027227,2]
[334535323,1723175450040,-155.296969,0.00027227,7]
[334535325,1723175450049,-405.422742,0.00027227,7]
[334535327,1723175450059,-405.422742,0.00027227,7]
[334535329,1723175450069,-1417.882806,0.00027227,7]
[334535331,1723175450078,-1417.882806,0.00027227,7]
[334535333,1723175450087,-153.550396,0.00027227,7]
[334535336,1723175450098,-151.0,0.00027227,7]
[334535338,1723175450107,-640.612167,0.00027227,7]
[334535340,1723175450116,-640.612167,0.00027227,7]
[334535342,1723175450126,-845.975809,0.00027227,7]
[334535344,1723175450135,-845.975809,0.00027227,7]
[334535346,1723175450145,-1208.766106,0.00027227,7]
[334535347,1723175450153,-1208.766106,0.00027227,7]
[334535349,1723175450163,-583.401317,0.00027227,7]
[334535351,1723175450172,-202.135724,0.00027227,7]
[334535353,1723175450182,-583.401317,0.00027227,7]
[334535355,1723175450191,-202.135724,0.00027227,7]
[334535357,1723175450201,-151.0,0.00027244,4]
[334535359,1723175450210,-20000.0,0.000273,3]
[334535361,1723175450224,-151.0,0.000273,7]
[334535363,1723175450233,-151.0,0.000273,7]
[334535366,1723175450243,-305.65463372,0.0002739,2]
[334535368,1723175450252,-40157.48828304,0.00027397,11]
[334535370,1723175450262,-500.0,0.00027397,7]
[334535371,1723175450272,-553.37181748,0.00027397,2]
[334535373,1723175450281,-503.37446145,0.00027397,7]
[334535375,1723175450290,-500.0,0.00027397,7]
[334535377,1723175450299,-500.0,0.00027397,7]
[334535379,1723175450309,-500.0,0.00027397,7]